bitfinex/quotes_BTCUSD_20250615
["timestamp","ask_amount","ask_price","bid_price","bid_amount"]
[1749997028532,0.62666186,105560.0,105550.0,0.27267551]
[1749997029057,0.44666926,105560.0,105550.0,0.24431704]
[1749997029268,0.44666926,105560.0,105550.0,0.25379113]
[1749997029486,0.43719598,105560.0,105550.0,0.26326495]
[1749997029692,0.43719598,105560.0,105550.0,0.2727385]
[1749997030130,0.41825005,105560.0,105550.0,0.2727385]
[1749997030355,0.03239842,105560.0,105550.0,0.81121998]
[1749997030794,0.03965593,105570.0,105560.0,0.25011163]
[1749997031005,0.03965593,105570.0,105560.0,0.25011172]
[1749997031217,0.56910368,105570.0,105560.0,0.25011172]
[1749997031427,0.56733601,105570.0,105560.0,0.2406388]
[1749997031645,0.56733601,105570.0,105560.0,0.24063889]
[1749997031908,1.10581749,105570.0,105560.0,0.25011199]
[1749997032125,1.10581749,105570.0,105560.0,0.0427]
[1749997032126,1.08687372,105570.0,105560.0,0.0427]
[1749997032337,1.08687372,105570.0,105560.0,0.0437]
[1749997033709,5.81752272,105570.0,105560.0,0.002]
[1749997033917,5.92830533,105570.0,105560.0,0.002]
[1749997034134,5.96140446,105570.0,105560.0,0.002]
[1749997034347,6.11968446,105570.0,105560.0,0.002]
[1749997035650,6.12631683,105570.0,105560.0,0.002]
[1749997035882,6.21583368,105570.0,105560.0,0.002]
[1749997037159,6.07755368,105570.0,105560.0,0.002]
[1749997037368,6.09865368,105570.0,105560.0,0.002]
[1749997037580,6.2635659,105570.0,105560.0,0.002]
[1749997037812,6.25693368,105570.0,105560.0,0.002]
[1749997038016,6.26356584,105570.0,105560.0,0.002]
[1749997038232,6.26356585,105570.0,105560.0,0.002]
[1749997038454,6.26356575,105570.0,105560.0,0.002]
[1749997038661,6.26356573,105570.0,105560.0,0.002]
[1749997038867,6.26356618,105570.0,105560.0,0.002]
[1749997039077,6.25693368,105570.0,105560.0,0.002]
[1749997039288,6.26356631,105570.0,105560.0,0.002]
[1749997039503,6.25693368,105570.0,105560.0,0.002]
[1749997040613,6.263604,105570.0,105560.0,0.002]
[1749997040831,6.25693368,105570.0,105560.0,0.002]
[1749997041108,6.26360399,105570.0,105560.0,0.002]
[1749997041316,6.25693368,105570.0,105560.0,0.002]
[1749997042424,6.02109161,105560.0,105550.0,0.00853339]
[1749997042647,5.80808813,105550.0,105540.0,0.0408]
[1749997042862,5.9729981,105550.0,105540.0,0.040942]
[1749997043074,5.97299805,105550.0,105540.0,0.040942]
[1749997043295,5.96632813,105550.0,105540.0,0.040942]
[1749997043777,5.97299793,105550.0,105540.0,0.040942]
[1749997044001,6.04332632,105550.0,105540.0,0.040942]
[1749997044697,6.04432632,105550.0,105540.0,0.040942]
[1749997044921,6.05099588,105550.0,105540.0,0.040942]
[1749997045135,6.05099589,105550.0,105540.0,0.040942]
[1749997045347,6.04432632,105550.0,105540.0,0.040942]
[1749997045570,6.0509959,105550.0,105540.0,0.040942]
[1749997045787,5.89275589,105550.0,105540.0,0.040942]
[1749997045997,6.0509951,105550.0,105540.0,0.040942]
[1749997046259,5.9749968,105550.0,105540.0,0.040942]
[1749997046485,5.96832813,105550.0,105540.0,0.040942]
[1749997046701,5.81675661,105550.0,105540.0,0.040942]
[1749997046918,5.96836813,105550.0,105540.0,0.040942]
[1749997047135,5.97503656,105550.0,105540.0,0.040942]
[1749997047573,5.96836813,105550.0,105540.0,0.040942]
[1749997047783,5.99232346,105550.0,105540.0,0.040942]
[1749997048341,5.45384198,105550.0,105540.0,0.040942]
[1749997048549,5.99232346,105550.0,105540.0,0.040942]
[1749997049422,5.96836813,105550.0,105540.0,0.040942]
[1749997050098,5.42988665,105550.0,105540.0,0.040942]
[1749997050311,5.96836813,105550.0,105540.0,0.000142]
[1749997051838,5.96836813,105550.0,105540.0,0.020742]
[1749997052294,5.96836813,105550.0,105540.0,0.000142]
[1749997052539,6.17529996,105550.0,105540.0,0.000142]
[1749997053197,6.1819304,105550.0,105540.0,0.000142]
[1749997053444,6.17529996,105550.0,105540.0,0.000142]
[1749997053675,6.18193027,105550.0,105540.0,0.000142]
[1749997053907,6.17529996,105550.0,105540.0,0.000142]
[1749997054529,6.22252822,105550.0,105540.0,0.000142]
[1749997054740,6.25101706,105550.0,105540.0,0.000142]
[1749997054951,6.24438896,105550.0,105540.0,0.000142]
[1749997055161,0.54847087,105530.0,105520.0,0.0422]
[1749997055372,0.54847087,105530.0,105520.0,0.04267375]
[1749997055373,6.04964024,105530.0,105520.0,0.04267375]
[1749997056450,6.04964024,105530.0,105520.0,0.00047375]
[1749997056719,6.05626786,105530.0,105520.0,0.00047375]
[1749997056929,6.05626779,105530.0,105520.0,0.02107375]
[1749997057157,6.05626779,105530.0,105520.0,0.04317375]
[1749997057372,6.01800135,105530.0,105520.0,0.04317375]
[1749997057582,6.01800135,105530.0,105520.0,0.05307073]
[1749997057787,6.01800135,105530.0,105520.0,0.04417375]
[1749997058000,6.02466596,105530.0,105520.0,0.04417375]
[1749997058208,6.02466598,105530.0,105520.0,0.04417375]
[1749997058419,6.02466598,105530.0,105520.0,0.05307079]
[1749997058420,6.02466597,105530.0,105520.0,0.05307079]
[1749997058646,5.82426597,105530.0,105520.0,0.05307079]
[1749997058865,0.70671087,105530.0,105520.0,0.04417375]
[1749997059108,1.2423819,105530.0,105520.0,0.04417375]
[1749997059324,1.2423819,105530.0,105520.0,0.05307011]
[1749997059325,6.06251505,105530.0,105520.0,0.05307011]
[1749997059548,6.06918008,105530.0,105520.0,0.04417375]
[1749997059762,6.06917985,105530.0,105520.0,0.04417375]
[1749997059991,6.06917972,105530.0,105520.0,0.05307058]
[1749997060217,5.91093977,105530.0,105520.0,0.05307069]
[1749997060427,6.11133977,105530.0,105520.0,0.04417375]
[1749997060648,5.56619357,105530.0,105520.0,0.05307052]
[1749997060860,6.11133987,105530.0,105520.0,0.04417375]
[1749997061075,5.90427505,105530.0,105520.0,0.04417375]
[1749997061290,1.24238168,105530.0,105520.0,0.04417375]
[1749997061505,1.23571683,105530.0,105520.0,0.04417375]
[1749997061722,1.24238169,105530.0,105520.0,0.04417375]
[1749997062590,1.24238165,105530.0,105520.0,0.04417375]
[1749997062797,1.33853081,105530.0,105520.0,0.04417375]
[1749997063016,1.33853086,105530.0,105520.0,0.06196686]
[1749997063221,1.36072535,105530.0,105520.0,0.04417375]
[1749997063422,1.36739015,105530.0,105520.0,0.06196686]
[1749997063651,1.36072535,105530.0,105520.0,0.06196686]
[1749997064066,1.36739015,105530.0,105520.0,0.04417375]
[1749997064311,6.09803914,105530.0,105520.0,0.04417375]
[1749997064520,6.11257993,105530.0,105520.0,0.06196713]
[1749997064744,6.1059152,105530.0,105520.0,0.04417375]
[1749997065161,6.1059152,105530.0,105520.0,0.06196742]
[1749997065391,6.11257999,105530.0,105520.0,0.04417375]
[1749997065598,6.11257999,105530.0,105520.0,0.02207375]
[1749997065810,6.11257958,105530.0,105520.0,0.03986742]
[1749997066018,6.11257838,105530.0,105520.0,0.03986742]
[1749997066229,6.11257805,105530.0,105520.0,0.03986757]
[1749997066444,6.20881861,105530.0,105520.0,0.02207375]
[1749997066672,6.20881849,105530.0,105520.0,0.03986779]
[1749997066901,6.20881841,105530.0,105520.0,0.02207375]
[1749997067108,6.20881841,105530.0,105520.0,0.03986779]
[1749997067341,6.20881809,105530.0,105520.0,0.03986779]
[1749997067546,6.05057809,105530.0,105520.0,0.02207375]
[1749997067764,6.24431696,105530.0,105520.0,0.03986784]
[1749997067996,6.25097806,105530.0,105520.0,0.03986784]
[1749997068198,6.24431696,105530.0,105520.0,0.03986785]
[1749997068631,6.25097805,105530.0,105520.0,0.03986785]
[1749997068841,6.25097805,105530.0,105520.0,0.02207375]
[1749997069058,6.04391696,105530.0,105520.0,0.03986785]
[1749997069266,6.15482883,105530.0,105520.0,0.03986785]
[1749997069477,6.30530615,105530.0,105520.0,0.03986785]
[1749997069690,6.30530604,105530.0,105520.0,0.03986785]
[1749997069905,6.30530607,105530.0,105520.0,0.02207375]
[1749997070112,6.30530612,105530.0,105520.0,0.02207375]
[1749997070319,6.29864506,105530.0,105520.0,0.02207375]
[1749997070531,6.30530607,105530.0,105520.0,0.06066728]
[1749997070748,6.40142824,105530.0,105520.0,0.04287375]
[1749997070966,6.39479428,105530.0,105520.0,0.04287375]
[1749997071409,6.40142824,105530.0,105520.0,0.00147375]
[1749997072061,6.40142824,105530.0,105520.0,0.02357375]
[1749997072274,6.39479428,105530.0,105520.0,0.04437375]
[1749997072923,6.93327576,105530.0,105520.0,0.00147375]
[1749997073138,6.39479428,105530.0,105520.0,0.00147375]
[1749997073345,6.40142749,105530.0,105520.0,0.00147375]
[1749997073556,6.97597576,105530.0,105520.0,0.00147375]
[1749997073771,6.44412744,105530.0,105520.0,0.00147375]
[1749997073983,6.44412738,105530.0,105520.0,0.00047375]
[1749997074205,6.44712712,105530.0,105520.0,0.00047375]
[1749997074416,6.4471274,105530.0,105520.0,0.00047375]
[1749997074623,6.43749428,105530.0,105520.0,0.00047375]
[1749997074834,6.44412746,105530.0,105520.0,0.00047375]
[1749997075070,6.98297576,105530.0,105520.0,0.00047375]
[1749997075279,6.98960875,105530.0,105520.0,0.00047375]
[1749997075506,6.96540887,105530.0,105520.0,0.00047375]
[1749997075931,6.96940887,105530.0,105520.0,0.00047375]
[1749997076110,6.27268754,105530.0,105520.0,0.00047375]
[1749997076320,6.43092754,105530.0,105520.0,0.00047375]
[1749997076559,6.25218754,105530.0,105520.0,0.00047375]
[1749997076779,6.41038754,105530.0,105520.0,0.00047375]
[1749997076986,6.41038759,105530.0,105520.0,0.00047375]
[1749997077405,6.25210731,105530.0,105520.0,0.00047375]
[1749997077614,6.41033378,105530.0,105520.0,0.00047375]
[1749997077825,6.25213378,105530.0,105520.0,0.00047375]
[1749997078278,6.25213376,105530.0,105520.0,0.00047375]
[1749997078496,6.40367428,105530.0,105520.0,0.0308714]
[1749997078705,6.41033388,105530.0,105520.0,0.0308714]
[1749997078929,6.21005388,105530.0,105520.0,0.0308714]
[1749997079147,5.76904358,105530.0,105520.0,0.05247135]
[1749997079400,6.30752506,105530.0,105520.0,0.04357375]
[1749997079611,6.31418484,105530.0,105520.0,0.04357375]
[1749997079815,6.33601806,105530.0,105520.0,0.06136853]
[1749997080022,6.33601806,105530.0,105520.0,0.07026592]
[1749997080023,6.43882706,105530.0,105520.0,0.07026592]
[1749997080275,6.43882706,105530.0,105520.0,0.05247114]
[1749997080489,6.23854706,105530.0,105520.0,0.06136853]
[1749997080705,5.59725658,105530.0,105520.0,0.06136853]
[1749997081131,6.14239784,105530.0,105520.0,0.06136833]
[1749997081335,6.28605711,105530.0,105520.0,0.06136833]
[1749997081550,6.30059796,105530.0,105520.0,0.06136832]
[1749997081760,6.29393806,105530.0,105520.0,0.06136832]
[1749997081976,5.48647397,105530.0,105520.0,0.06136806]
[1749997082187,6.18981547,105530.0,105520.0,0.06136758]
[1749997082395,6.18981549,105530.0,105520.0,0.06136743]
[1749997082602,6.18981549,105530.0,105520.0,0.04357375]
[1749997082829,6.18315545,105530.0,105520.0,0.06136743]
[1749997083040,5.64467397,105530.0,105520.0,0.06136715]
[1749997083251,6.18981554,105530.0,105520.0,0.06136715]
[1749997083454,6.18981554,105530.0,105520.0,0.06136711]
[1749997083664,6.18981562,105530.0,105520.0,0.06136698]
[1749997083876,6.18981565,105530.0,105520.0,0.06136698]
[1749997084094,6.18315545,105530.0,105520.0,0.06136695]
[1749997084303,6.18981563,105530.0,105520.0,0.06136707]
[1749997084727,6.18981563,105530.0,105520.0,0.04357375]
[1749997085142,6.18981563,105530.0,105520.0,0.06136708]
[1749997085614,6.18315545,105530.0,105520.0,0.04357375]
[1749997085843,6.18981563,105530.0,105520.0,0.06136708]
[1749997086082,6.18315545,105530.0,105520.0,0.04357375]
[1749997086336,6.18981563,105530.0,105520.0,0.04357375]
[1749997086592,6.18981563,105530.0,105520.0,0.06136708]
[1749997086828,6.28596485,105530.0,105520.0,0.04357375]
[1749997087067,6.27930467,105530.0,105520.0,0.04357375]
[1749997087304,6.28596521,105530.0,105520.0,0.04357375]
[1749997087534,6.28596541,105530.0,105520.0,0.04357375]
[1749997087773,6.28596556,105530.0,105520.0,0.04357375]
[1749997088018,5.74748446,105530.0,105520.0,0.04357375]
[1749997088258,6.28596651,105530.0,105520.0,0.04357375]
[1749997088500,6.27930467,105530.0,105520.0,0.04357375]
[1749997088725,6.28596672,105530.0,105520.0,0.04357375]
[1749997089180,6.28596756,105530.0,105520.0,0.04357375]
[1749997089388,6.28596759,105530.0,105520.0,0.04357375]
[1749997089804,6.28596768,105530.0,105520.0,0.04357375]
[1749997090652,6.27930467,105530.0,105520.0,0.04357375]
[1749997091076,6.285965,105530.0,105520.0,0.04357375]
[1749997091287,6.28596512,105530.0,105520.0,0.04357375]
[1749997091503,6.1898159,105530.0,105520.0,0.04357375]
[1749997091735,6.18981578,105530.0,105520.0,0.04357375]
[1749997091969,6.18981536,105530.0,105520.0,0.04357375]
[1749997092200,6.1897749,105530.0,105520.0,0.04357375]
[1749997092438,6.18977481,105530.0,105520.0,0.04357375]
[1749997092665,6.28592396,105530.0,105520.0,0.04357375]
[1749997092891,6.28592395,105530.0,105520.0,0.04357375]
[1749997093116,6.25743095,105530.0,105520.0,0.04357375]
[1749997093380,6.25743092,105530.0,105520.0,0.04357375]
[1749997093591,6.25743088,105530.0,105520.0,0.04357375]
[1749997093808,6.25743085,105530.0,105520.0,0.04357375]
[1749997094226,6.25743088,105530.0,105520.0,0.04357375]
[1749997094467,6.15462245,105530.0,105520.0,0.04357375]
[1749997094719,6.16128164,105530.0,105520.0,0.04357375]
[1749997094939,6.16128171,105530.0,105520.0,0.04357375]
[1749997095154,1.26581345,105530.0,105520.0,0.04357375]
[1749997095381,0.89215157,105530.0,105520.0,0.04357375]
[1749997095601,0.69847267,105530.0,105520.0,0.04357375]
[1749997095815,0.86329232,105530.0,105520.0,0.04357375]
[1749997096031,0.68899688,105530.0,105520.0,0.04357375]
[1749997096265,1.22747836,105530.0,105520.0,0.04357375]
[1749997096492,1.23413759,105530.0,105520.0,0.04357375]
[1749997096718,1.23413736,105530.0,105520.0,0.04357375]
[1749997096929,1.22913727,105530.0,105520.0,0.04357375]
[1749997097135,1.2251374,105530.0,105520.0,0.04357375]
[1749997097347,1.22347836,105530.0,105520.0,0.04357375]
[1749997097564,1.38163836,105530.0,105520.0,0.04357375]
[1749997097783,0.84981574,105530.0,105520.0,0.04357375]
[1749997098047,1.38829716,105530.0,105520.0,0.04357375]
[1749997098256,1.38163836,105530.0,105520.0,0.04357375]
[1749997098772,1.38829715,105530.0,105520.0,0.04357375]
[1749997098977,1.38163836,105530.0,105520.0,0.04357375]
[1749997099402,1.38829716,105530.0,105520.0,0.04357375]
[1749997100561,1.38829717,105530.0,105520.0,0.04357375]
[1749997100744,1.38830042,105530.0,105520.0,0.04357375]
[1749997100967,1.38163836,105530.0,105520.0,0.04357375]
[1749997101162,1.38830042,105530.0,105520.0,0.04357375]
[1749997101372,1.38830043,105530.0,105520.0,0.04357375]
[1749997101800,1.38163836,105530.0,105520.0,0.04357375]
[1749997101943,1.38829198,105530.0,105520.0,0.04357375]
[1749997103163,1.38163836,105530.0,105520.0,0.24258814]
[1749997103622,1.38829202,105530.0,105520.0,0.04357375]
[1749997104440,1.38163836,105530.0,105520.0,0.04357375]
[1749997105069,1.38829202,105530.0,105520.0,0.04357375]
[1749997105280,1.38163836,105530.0,105520.0,0.04357375]
[1749997105492,1.38829202,105530.0,105520.0,0.04357375]
[1749997105703,1.38163836,105530.0,105520.0,0.04357375]
[1749997105916,1.38829202,105530.0,105520.0,0.04357375]
[1749997106954,1.38163836,105530.0,105520.0,0.04357375]
[1749997107154,1.38829202,105530.0,105520.0,0.04357375]
[1749997107508,1.38163836,105530.0,105520.0,0.04357375]
[1749997108114,1.38829227,105530.0,105520.0,0.04357375]
[1749997108299,1.38829226,105530.0,105520.0,0.04357375]
[1749997108499,1.38163836,105530.0,105520.0,0.04357375]
[1749997108700,1.38829225,105530.0,105520.0,0.04357375]
[1749997109073,1.38163836,105530.0,105520.0,0.04357375]
[1749997109280,1.46030868,105530.0,105520.0,0.04357375]
[1749997109491,1.46696254,105530.0,105520.0,0.04357375]
[1749997109696,1.46030868,105530.0,105520.0,0.04357375]
[1749997110175,1.46696254,105530.0,105520.0,0.04357375]
[1749997110383,1.46030868,105530.0,105520.0,0.04357375]
[1749997111015,1.46696254,105530.0,105520.0,0.04357375]
[1749997111227,1.46030868,105530.0,105520.0,0.04357375]
[1749997111640,1.4669625,105530.0,105520.0,0.04357375]
[1749997112056,1.46030868,105530.0,105520.0,0.04357375]
[1749997112265,1.38829218,105530.0,105520.0,0.04357375]
[1749997112703,1.3882922,105530.0,105520.0,0.04357375]
[1749997113117,1.38829208,105530.0,105520.0,0.04357375]
[1749997113344,1.38163836,105530.0,105520.0,0.04357375]
[1749997113570,1.47778758,105530.0,105520.0,0.04357375]
[1749997113806,1.51255465,105530.0,105520.0,0.04357375]
[1749997114023,1.51255452,105530.0,105520.0,0.04357375]
[1749997114243,1.51255453,105530.0,105520.0,0.00047375]
[1749997114466,1.51255448,105530.0,105520.0,0.00047375]
[1749997114681,1.50590097,105530.0,105520.0,0.00047375]
[1749997114889,1.51255446,105530.0,105520.0,0.00047375]
[1749997115515,1.50590097,105530.0,105520.0,0.00047375]
[1749997115718,1.51255455,105530.0,105520.0,0.00047375]
[1749997115924,1.51255459,105530.0,105520.0,0.00047375]
[1749997116604,1.51255459,105530.0,105520.0,0.02197375]
[1749997116821,1.41640527,105530.0,105520.0,0.04217375]
[1749997117038,1.40975175,105530.0,105520.0,0.04217375]
[1749997117471,1.41640545,105530.0,105520.0,0.04217375]
[1749997117733,1.41640546,105530.0,105520.0,0.04217375]
[1749997118174,1.41640543,105530.0,105520.0,0.04217375]
[1749997118605,1.40975175,105530.0,105520.0,0.04217375]
[1749997119002,1.41640543,105530.0,105520.0,0.04217375]
[1749997119239,1.40975175,105530.0,105520.0,0.04217375]
[1749997119456,1.41640543,105530.0,105520.0,0.04217375]
[1749997120502,1.41641389,105530.0,105520.0,0.04217375]
[1749997121346,1.40975175,105530.0,105520.0,0.04217375]
[1749997121557,1.41641389,105530.0,105520.0,0.04217375]
[1749997121777,1.40975175,105530.0,105520.0,0.04217375]
[1749997121982,1.41641387,105530.0,105520.0,0.04217375]
[1749997122190,1.41641386,105530.0,105520.0,0.04217375]
[1749997122606,1.41641383,105530.0,105520.0,0.04217375]
[1749997122789,1.41641386,105530.0,105520.0,0.04217375]
[1749997123447,1.41641389,105530.0,105520.0,0.04217375]
[1749997123657,1.40975175,105530.0,105520.0,0.04217375]
[1749997123868,1.41641389,105530.0,105520.0,0.04217375]
[1749997124086,1.4164124,105530.0,105520.0,0.04217375]
[1749997124213,1.48700268,105530.0,105520.0,0.04217375]
[1749997124429,6.21765168,105530.0,105520.0,0.02197375]
[1749997124681,6.22431222,105530.0,105520.0,0.02197375]
[1749997124883,6.2243122,105530.0,105520.0,0.02197375]
[1749997125083,6.21765168,105530.0,105520.0,0.02197375]
[1749997125721,6.21765168,105530.0,105520.0,0.00047375]
[1749997125925,6.22431308,105530.0,105520.0,0.00047375]
[1749997126132,6.14040075,105530.0,105520.0,0.02257375]
[1749997126328,6.14706215,105530.0,105520.0,0.02257375]
[1749997126479,6.14040075,105530.0,105520.0,0.04437375]
[1749997126894,6.14706214,105530.0,105520.0,0.04437375]
[1749997127300,5.98224075,105530.0,105520.0,0.04437375]
[1749997127518,6.14694215,105530.0,105520.0,0.04437375]
[1749997127765,6.14028075,105530.0,105520.0,0.04437375]
[1749997128116,1.41629325,105530.0,105520.0,0.04437375]
[1749997128622,1.40963175,105530.0,105520.0,0.04437375]
[1749997128807,1.41629332,105530.0,105520.0,0.04437375]
[1749997129040,1.40963175,105530.0,105520.0,0.04437375]
[1749997129440,1.41629334,105530.0,105520.0,0.04437375]
[1749997129861,1.40963175,105530.0,105520.0,0.04437375]
[1749997130455,1.41629335,105530.0,105520.0,0.04437375]
[1749997130670,1.41629331,105530.0,105520.0,0.04437375]
[1749997130883,1.41629337,105530.0,105520.0,0.04437375]
[1749997131312,1.40963175,105530.0,105520.0,0.04437375]
[1749997131752,1.41629485,105530.0,105520.0,0.04437375]
[1749997132167,1.41629482,105530.0,105520.0,0.04437375]
[1749997132583,1.40963175,105530.0,105520.0,0.04437375]
[1749997133120,1.41629486,105530.0,105520.0,0.04437375]
[1749997133325,1.40963175,105530.0,105520.0,0.04437375]
[1749997133766,1.41629486,105530.0,105520.0,0.04437375]
[1749997133971,1.40963175,105530.0,105520.0,0.04437375]
[1749997134174,1.41629486,105530.0,105520.0,0.04437375]
[1749997134375,1.40963175,105530.0,105520.0,0.04437375]
[1749997134575,1.41629483,105530.0,105520.0,0.04437375]
[1749997134823,1.40963175,105530.0,105520.0,0.04437375]
[1749997135027,1.4162948,105530.0,105520.0,0.04437375]
[1749997135232,1.40963175,105530.0,105520.0,0.04437375]
[1749997135441,1.41629488,105530.0,105520.0,0.04437375]
[1749997135788,1.41629484,105530.0,105520.0,0.04437375]
[1749997135990,6.24309306,105530.0,105520.0,0.02257375]
[1749997136214,6.24309339,105530.0,105520.0,0.02257375]
[1749997136529,6.24309366,105530.0,105520.0,0.02257375]
[1749997136729,6.24309366,105530.0,105520.0,0.00047375]
[1749997136730,6.23642997,105530.0,105520.0,0.00047375]
[1749997136964,6.24309361,105530.0,105520.0,0.00047375]
[1749997137166,6.24309401,105530.0,105520.0,0.00047375]
[1749997137406,6.2430941,105530.0,105520.0,0.02247375]
[1749997137606,6.23642997,105530.0,105520.0,0.02247375]
[1749997137837,6.24309419,105530.0,105520.0,0.02247375]
[1749997139148,6.24309421,105530.0,105520.0,0.02247375]
[1749997139828,6.24309417,105530.0,105520.0,0.02247375]
[1749997140040,6.14694495,105530.0,105520.0,0.02247375]
[1749997140287,6.14694492,105530.0,105520.0,0.04397375]
[1749997140536,6.14694491,105530.0,105520.0,0.04397375]
[1749997140781,6.14694505,105530.0,105520.0,0.04397375]
[1749997141019,6.14028075,105530.0,105520.0,0.04397375]
[1749997141488,6.1469452,105530.0,105520.0,0.00047375]
[1749997141972,6.1469452,105530.0,105520.0,0.02067375]
[1749997142444,6.14028075,105530.0,105520.0,0.02067375]
[1749997142732,6.14634055,105530.0,105520.0,0.02067375]
[1749997142975,6.21502813,105530.0,105520.0,0.02067375]
[1749997143759,5.87563279,105530.0,105520.0,0.02067375]
[1749997144042,5.86896833,105530.0,105520.0,0.02067375]
[1749997145006,5.87563326,105530.0,105520.0,0.02067375]
[1749997145463,5.87563326,105530.0,105520.0,0.00047375]
[1749997145706,5.86896833,105530.0,105520.0,0.00047375]
[1749997145939,5.87563316,105530.0,105520.0,0.00047375]
[1749997146170,5.87563319,105530.0,105520.0,0.00047375]
[1749997146393,5.87563344,105530.0,105520.0,0.00047375]
[1749997146624,5.87563351,105530.0,105520.0,0.00047375]
[1749997146889,5.96511755,105530.0,105520.0,0.00047375]
[1749997147124,6.09650016,105530.0,105520.0,0.00047375]
[1749997147373,6.12436541,105530.0,105520.0,0.00047375]
[1749997147605,6.4643654,105530.0,105520.0,0.00047375]
[1749997147807,6.46436558,105530.0,105520.0,0.00047375]
[1749997148030,6.46436573,105530.0,105520.0,0.00047375]
[1749997148344,6.46436617,105530.0,105520.0,0.00047375]
[1749997148559,6.46436561,105530.0,105520.0,0.00047375]
[1749997148802,6.46436555,105530.0,105520.0,0.00047375]
[1749997149033,6.46436567,105530.0,105520.0,0.00047375]
[1749997149264,7.07153476,105530.0,105520.0,0.00047375]
[1749997149455,7.07153486,105530.0,105520.0,0.00047375]
[1749997149740,6.46436575,105530.0,105520.0,0.00037825]
[1749997149980,6.45770016,105530.0,105520.0,0.00037825]
[1749997150446,6.46436641,105530.0,105520.0,0.00037825]
[1749997150666,6.45770016,105530.0,105520.0,0.00037825]
[1749997150901,6.46436652,105530.0,105520.0,0.00037825]
[1749997151137,6.46436659,105530.0,105520.0,0.00037825]
[1749997151373,6.46436661,105530.0,105520.0,0.00037825]
[1749997151601,6.34701739,105530.0,105520.0,0.00037825]
[1749997151828,6.34035094,105530.0,105520.0,0.00037825]
[1749997152090,6.34701739,105530.0,105520.0,0.00037825]
[1749997152288,6.95418632,105530.0,105520.0,0.00037825]
[1749997152561,6.34701726,105530.0,105520.0,0.00037825]
[1749997153055,6.44316648,105530.0,105520.0,0.00037825]
[1749997153312,6.44314916,105530.0,105520.0,0.00037825]
[1749997153594,6.48086173,105530.0,105520.0,0.00037825]
[1749997153908,6.50216176,105530.0,105520.0,0.00037825]
[1749997154099,0.19903308,105510.0,105500.0,0.04166]
[1749997154322,6.36993586,105510.0,105500.0,0.02126]
[1749997154538,6.50821707,105510.0,105500.0,0.03015828]
[1749997154761,6.50155229,105510.0,105500.0,0.03015837]
[1749997154974,6.9942949,105510.0,105500.0,0.0301584]
[1749997155198,0.02844006,105480.0,105470.0,0.21807037]
[1749997155429,0.8346989,105480.0,105470.0,0.19910837]
[1749997155660,0.22752984,105480.0,105470.0,0.21807064]
[1749997155944,0.8346989,105480.0,105470.0,0.20858964]
[1749997156191,0.8346989,105480.0,105470.0,0.22755191]
[1749997156418,0.8346989,105480.0,105470.0,0.24793147]
[1749997156419,0.65070125,105480.0,105470.0,0.24793147]
[1749997156639,0.02457242,105480.0,105470.0,0.84629061]
[1749997156854,1.18134075,105490.0,105480.0,0.20856989]
[1749997157073,0.34947876,105490.0,105480.0,0.32319018]
[1749997157288,0.34,105490.0,105480.0,0.35799149]
[1749997158156,0.34,105490.0,105480.0,0.35899149]
[1749997158376,0.35895815,105490.0,105480.0,0.35899149]
[1749997158589,0.36843745,105490.0,105480.0,0.34951165]
[1749997158797,0.34947894,105490.0,105480.0,0.35899149]
[1749997159009,0.38315205,105490.0,105480.0,0.36299149]
[1749997159224,0.37367293,105490.0,105480.0,0.36299149]
[1749997159909,0.37367284,105490.0,105480.0,0.38078874]
[1749997160381,0.37367284,105490.0,105480.0,0.36299149]
[1749997160564,0.3926309,105490.0,105480.0,0.38078874]
[1749997160794,0.3926309,105490.0,105480.0,0.38078881]
[1749997160795,0.38315178,105490.0,105480.0,0.38078881]
[1749997161034,0.37367284,105490.0,105480.0,0.38078881]
[1749997161235,0.37367284,105490.0,105480.0,0.38078874]
[1749997161445,0.38315178,105490.0,105480.0,0.38078874]
[1749997161658,0.39263081,105490.0,105480.0,0.36299149]
[1749997161868,0.39263081,105490.0,105480.0,0.38078872]
[1749997162302,0.40211002,105490.0,105480.0,0.36299149]
[1749997162506,0.39263081,105490.0,105480.0,0.38078872]
[1749997162715,0.36419399,105490.0,105480.0,0.38078872]
[1749997162924,0.37367284,105490.0,105480.0,0.38078872]
[1749997163138,0.37367284,105490.0,105480.0,0.36299149]
[1749997163353,0.37367284,105490.0,105480.0,0.38078842]
[1749997163689,0.37367284,105490.0,105480.0,0.36299149]
[1749997163900,0.37367284,105490.0,105480.0,0.38078842]
[1749997164117,0.38315178,105490.0,105480.0,0.36299149]
[1749997164335,0.38315178,105490.0,105480.0,0.38078842]
[1749997164491,0.38315178,105490.0,105480.0,0.38078852]
[1749997164698,0.40211002,105490.0,105480.0,0.38078852]
[1749997164910,0.40211002,105490.0,105480.0,0.38078853]
[1749997165107,0.39263081,105490.0,105480.0,0.36299149]
[1749997165359,0.39263081,105490.0,105480.0,0.38078868]
[1749997165560,0.39263081,105490.0,105480.0,0.36299149]
[1749997165778,0.39263081,105490.0,105480.0,0.38078868]
[1749997166497,0.40210993,105490.0,105480.0,0.38078868]
[1749997166923,0.39263081,105490.0,105480.0,0.38078868]
[1749997167128,0.39263081,105490.0,105480.0,0.36299149]
[1749997167367,0.39263081,105490.0,105480.0,0.38078868]
[1749997167584,0.38315178,105490.0,105480.0,0.38078868]
[1749997167796,0.38315178,105490.0,105480.0,0.36299149]
[1749997168015,0.38315178,105490.0,105480.0,0.38078868]
[1749997168220,0.38315178,105490.0,105480.0,0.36299149]
[1749997168436,0.3926309,105490.0,105480.0,0.38078868]
[1749997168682,0.37367284,105490.0,105480.0,0.36299149]
[1749997168894,1.02556019,105500.0,105490.0,0.26012906]
[1749997168895,0.46864342,105500.0,105490.0,0.26012906]
[1749997169125,0.46864342,105500.0,105490.0,0.27792464]
[1749997169335,0.47812128,105500.0,105490.0,0.2779243]
[1749997169542,0.49707745,105500.0,105490.0,0.2779243]
[1749997169751,0.48759932,105500.0,105490.0,0.27792443]
[1749997169966,0.49707745,105500.0,105490.0,0.27792459]
[1749997170181,0.49707745,105500.0,105490.0,0.27792468]
[1749997170832,0.48759932,105500.0,105490.0,0.26012906]
[1749997171046,0.47812137,105500.0,105490.0,0.27792464]
[1749997171296,0.47812128,105500.0,105490.0,0.27792464]
[1749997171942,0.47812128,105500.0,105490.0,0.26012906]
[1749997172145,0.47812128,105500.0,105490.0,0.26312906]
[1749997172559,0.50235725,105500.0,105490.0,0.26312906]
[1749997172770,0.50235725,105500.0,105490.0,0.28092464]
[1749997174284,0.50235725,105500.0,105490.0,0.28092466]
[1749997174956,0.52131369,105500.0,105490.0,0.28092466]
[1749997175186,0.50235725,105500.0,105490.0,0.28092466]
[1749997175418,0.52131351,105500.0,105490.0,0.28092466]
[1749997175872,0.51183529,105500.0,105490.0,0.28092466]
[1749997176079,0.51183529,105500.0,105490.0,0.28091283]
[1749997176716,0.51183529,105500.0,105490.0,0.26312906]
[1749997177363,0.50235725,105500.0,105490.0,0.28091283]
[1749997177569,0.50235725,105500.0,105490.0,0.26312906]
[1749997177787,0.51183529,105500.0,105490.0,0.26312906]